Cogmind - Beta 17.1 @@@ ROGUE MODE // 2026.08.31 @ 15:26:54 Player: Godsword Result: Self-destructed Performance ------------- Evolutions (1) 500 Regions Visited (2) 400 Robots Destroyed (1) 5 Value Destroyed (34) 34 Prototype IDs (0) 0 Alien Tech Used (0) 0 Bonus (200) 200 TOTAL SCORE: 1139 Bonus ------- Pacifist 200 Cogmind --------- Core Integrity 400/400 Matter 249/300 Energy 250/250 System Corruption 0% Temperature Cool (4) Movement Hovering (136) Ox1 Location -9/Materials Parts ------- > --- POWER (1) -------- Ion Engine > --- PROPULSION (3) --- Backup Propulsion I Improved Hover Unit > --- UTILITY (3) ------ Small Storage Unit Targeting Computer Hardened Light Armor Plating > --- WEAPON (2) ------- Light Assault Rifle > --- INVENTORY (8) ---- Light Ion Engine Heat Sink Medium Battery (150) Small Matter Pod (0) Backup Plating I Backup Plating I Peak State ------------ > --- POWER ------------ Ion Engine > --- PROPULSION ------- Backup Propulsion I Backup Propulsion I Improved Hover Unit > --- UTILITY ---------- Small Storage Unit Targeting Computer Hardened Light Armor Plating > --- WEAPON ----------- Light Assault Rifle > --- INVENTORY -------- Light Ion Engine Heat Sink Medium Battery Small Matter Pod Backup Plating I Backup Plating I [Rating: 10] Favorites ----------- Power Ion Engine Engine Ion Engine Propulsion Backup Propulsion I Hover Unit Backup Propulsion I Utility Small Storage Unit Storage Small Storage Unit Processor Targeting Computer Protection Backup Plating I Weapon Light Assault Rifle Ballistic Gun Light Assault Rifle Build | -11 -10 -9 ------- Run | Yrd Mat Mat Slots Evolved 2 | . . 2 Power . | . . . Propulsion 1 | . . 1 Utility 1 | . . 1 Weapon . | . . . Parts Attached 6 | 1 2 3 Power 1 | . 1 . Engine 1 | . 1 . Core . | . . . Reactor . | . . . Propulsion 1 | . . 1 Treads . | . . . Leg . | . . . Wheel . | . . . Hover 1 | . . 1 Flight . | . . . Utility 3 | . 1 2 Device . | . . . Storage 1 | . 1 . Processor 1 | . . 1 Hackware . | . . . Protection 1 | . . 1 Artifact . | . . . Weapon 1 | 1 . . Energy Gun . | . . . Energy Cannon . | . . . Ballistic Gun 1 | 1 . . Ballistic Cannon . | . . . Launcher . | . . . Special Weapon . | . . . Impact Weapon . | . . . Slashing Weapon . | . . . Piercing Weapon . | . . . Special Melee Weapon . | . . . Unidentified Prototypes . | . . . Parts Lost 1 | . . 1 Power . | . . . Propulsion 1 | . . 1 Utility . | . . . Weapon . | . . . Highest Loss Streak 1 | . . 1 To Critical Strikes . | . . . Average Backups 4 | . 3 5 Power . | . 1 1 Propulsion . | . . . Utility 3 | . 2 4 Weapon . | . . . Tool/Special . | . . . Unused Backups 4 | . . 4 Power 1 | . . 1 Propulsion . | . . . Utility 3 | . . 3 Weapon . | . . . Tool/Special . | . . . Average Slot Usage (%) 78 | . 77 78 Engine 11 | . 12 11 Hover 25 | . 25 25 Storage 10 | . 9 11 Processor 5 | . . 9 Protection 13 | . 15 11 Ballistic Gun 12 | . 14 11 Peak Build Rating 10 | 1 6 10 Average Rating 6 | . 5 8 On Entrance 2 | . 1 6 Avg Prop Armor Cover (%) . | . . . Naked Turns . | . . . Heaviest Build 16 | 1 12 16 Greatest Support 19 | 3 12 19 Greatest Overweight (x) . | . . . Average Overweight (x) . | . . . Largest Inventory Capacity 8 | 5 8 8 Average Capacity 7 | 5 7 8 Most Carried 7 | 1 5 7 Average Carried 4 | . 3 5 Final Capacity 8 | 5 8 8 Final Carried 6 | 1 5 6 Class Distribution -------------------- 100% | Mutant Dominant Class ---------------- Mutant | -10/Materials Mutant | -9/Materials Resources | -11 -10 -9 ----------- Run | Yrd Mat Mat Matter Collected 210 | 210 . . Remotely . | . . . Salvage Created 36 | . . 36 Parts 2 | . . 2 Haulers Intercepted . | . . . Recyclers Shooed . | . . . Parts Field Recycled . | . . . Retrieved Matter . | . . . Parts Self-Destructed . | . . . Prevented . | . . . Parts Restored . | . . . Kills | -11 -10 -9 ------- Run | Yrd Mat Mat Combat Hostiles Destroyed 1 | . . 1 Guns 1 | . . 1 Classes Destroyed 1 | . . 1 Grunt 1 | . . 1 Best Kill Streak 1 | . . 1 Combat Bots Only 1 | . . 1 Max Kills in Single Turn 1 | . . 1 Gunslinging . | . . . Exploded . | . . . Melee . | . . . Uniques/NPCs Destroyed . | . . . Combat | -11 -10 -9 -------- Run | Yrd Mat Mat Hostile Shots Fired 6 | . 1 5 Missed 2 | . 1 1 Hits 4 | . . 4 Projectile 4 | . . 4 Damage Taken 42 | . 1 41 Core 1 | . 1 . Absorbed by Shields . | . . . Core Remaining (%) 99 | 100 99 . Volleys Fired 11 | . . 11 Largest 1 | . . 1 Hottest 20 | . . 20 Shots Fired 11 | . . 11 Gun 11 | . . 11 Cannon . | . . . Launcher . | . . . Special . | . . . Kinetic 11 | . . 11 Thermal . | . . . Explosive . | . . . Electromagnetic . | . . . Robot Hit Streak 3 | . . 3 Robot Miss Streak 1 | . . 1 Penetration Max . | . . . Secondary Targets . | . . . Shots Hit Robots 8 | . . 8 Core Hits 4 | . 1 3 Critical Kills . | . . . Critical Parts Destroyed . | . . . Critical Strikes . | . . . Melee Attacks . | . . . Impact . | . . . Slashing . | . . . Piercing . | . . . Sneak Attacks . | . . . Combat Hostiles . | . . . Follow-up Attacks . | . . . Damage Inflicted 55 | . 3 52 Guns 52 | . . 52 Cannons . | . . . Explosions . | . . . Melee . | . . . Ramming 3 | . 3 . Kinetic 52 | . . 52 Thermal . | . . . Explosive . | . . . Electromagnetic . | . . . Impact . | . . . Slashing . | . . . Piercing . | . . . Highest Corruption . | . . . Average Corruption . | . . . Corruption Purged . | . . . Corruption Blocked . | . . . Overload Shots . | . . . Overflow Damage . | . . . Projectiles . | . . . Explosions . | . . . Melee . | . . . Knockbacks . | . . . Impact . | . . . Kinetic . | . . . Secondary . | . . . Self-Inflicted Damage 1 | . 1 . Shots . | . . . Rammed 1 | . 1 . Targets Rammed 1 | . 1 . Kicked . | . . . Crushed . | . . . Highest Temperature 16 | . . 16 Average Temperature 7 | . . 7 Received Heat Transfer 24 | . . 24 Siege Activations . | . . . Martial Activations . | . . . Shielding Activations . | . . . Robots Disrupted . | . . . Combat Hostiles . | . . . Robots Corrupted . | . . . Combat Hostiles . | . . . Parts Fried . | . . . Impact Corruptions . | . . . Robots Melted . | . . . Combat Hostiles . | . . . Parts Melted . | . . . Heat Transferred . | . . . Parts Sabotaged . | . . . Parts Stolen . | . . . Parts Stripped . | . . . Power Chain Reactions . | . . . Alert | -11 -10 -9 ------- Run | Yrd Mat Mat Maximum Alert Level . | . . . Low Security (%) 100 | 100 100 100 Level 1 . | . . . Level 2 . | . . . Level 3 . | . . . Level 4 . | . . . Level 5 . | . . . High Security . | . . . Max Security . | . . . Peak Influence 20 | . 6 20 Initial . | . . . Average . | . . . Influence Increases 26 | . 6 20 Destroy 0b10 Robot/C 20 | . . 20 Successful Hack 6 | . 6 . Influence Decreases 6 | . 6 . Time Decay 6 | . 6 . Squads Dispatched 1 | . 1 . Investigation . | . . . Extermination . | . . . Reinforcement 1 | . 1 . Assault . | . . . Garrison . | . . . Intercept . | . . . Searches Triggered . | . . . Construction Impeded . | . . . Haulers Reinforced . | . . . Active Scanning Responses . | . . . Cargo Convoy Interrupts . | . . . Stealth | -11 -10 -9 --------- Run | Yrd Mat Mat Distress Signals . | . . . Communications Jammed . | . . . Distress Signals . | . . . Times Spotted 3 | . 1 2 Peak Tracking Total 2 | . 1 2 Tactical Retreats . | . . . Traps | -11 -10 -9 ------- Run | Yrd Mat Mat Traps Triggered . | . . . Indirectly . | . . . Trap Hack Attempts . | . . . Triggered . | . . . Disarmed . | . . . Reprogrammed . | . . . Reused . | . . . Traps Extracted . | . . . Installed . | . . . Triggered . | . . . Machines | -11 -10 -9 ---------- Run | Yrd Mat Mat Machines Disabled . | . . . Max in Single Turn . | . . . Machines Repaired . | . . . Machines Dismantled . | . . . Machines Sabotaged . | . . . Overloaded Fab Kills . | . . . Hacking | -11 -10 -9 --------- Run | Yrd Mat Mat Machines Accessed 5 | . 3 2 Terminals 4 | . 2 2 Fabricators . | . . . Repair Stations 1 | . 1 . Recycling Units . | . . . Scanalyzers . | . . . Garrison Access . | . . . Total Hacks 6 | . 4 2 Successful 1 | . 1 . Failed 5 | . 3 2 Catastrophic 3 | . 1 2 Database Lockouts . | . . . Manual 4 | . 2 2 Terminals 5 | . 3 2 Fabricators . | . . . Repair Stations 1 | . 1 . Recycling Units . | . . . Scanalyzers . | . . . Garrison Access . | . . . Terminal Hacks . | . . . Fabricator Hacks . | . . . Repair Station Hacks 1 | . 1 . Refit 1 | . 1 . Recycling Unit Hacks . | . . . Scanalyzer . | . . . Garrison Access Hacks . | . . . Unauthorized Hacks . | . . . Terminals . | . . . Fabricators . | . . . Repair Stations . | . . . Recycling Units . | . . . Scanalyzers . | . . . Garrison Access . | . . . Data Cores Recovered . | . . . Used . | . . . Hacking Detections 4 | . 2 2 Full Trace Events . | . . . Feedback Events . | . . . Feedback Blocked . | . . . Robot Schematics Acquired . | . . . Robots Built . | . . . Authchips . | . . . Time . | . . . Total Robot Build Rating . | . . . Part Schematics Acquired . | . . . Parts Built . | . . . Authchips . | . . . Time . | . . . Total Part Build Rating . | . . . Part Studies Acquired . | . . . Parts Repaired . | . . . Time . | . . . Parts Recycled . | . . . Recycled Matter . | . . . Retrieved Matter . | . . . Retrieved Components . | . . . Parts Scanalyzed . | . . . Part Schematics Acquired . | . . . Parts Damaged . | . . . Bothacking | -11 -10 -9 ------------ Run | Yrd Mat Mat Used RIF Installer . | . . . Robots Hacked . | . . . Non-combat . | . . . Combat . | . . . Robot Hacks Applied . | . . . Relay Couplers Released . | . . . Fabnet Peak Effective % . | . . . Robots Rewired . | . . . Allies Hacked . | . . . Hacks Repelled . | . . . Allies | -11 -10 -9 -------- Run | Yrd Mat Mat Total Allies . | . . . Largest Group . | . . . Highest-Rated Group . | . . . Highest-Rated Ally . | . . . Total Orders . | . . . Ally Attacks . | . . . Total Damage . | . . . Kills . | . . . Allies Corrupted . | . . . Allies Melted . | . . . Intel | -11 -10 -9 ------- Run | Yrd Mat Mat Active Infowar (turns) . | . . . Robot Analysis Total . | . . . Derelict Logs Recovered . | . . . Drone Launches . | . . . Drone Recoveries . | . . . Exploration | -11 -10 -9 ------------- Run | Yrd Mat Mat Turns Passed 222 | 18 98 106 Spaces Moved 255 | 30 123 102 Core 43 | 30 13 . Treads . | . . . Legs . | . . . Wheels . | . . . Hover 212 | . 110 102 Flight . | . . . Fastest Speed 50 | 50 50 65 Average Speed 70 | 50 73 73 Slowest Speed 76 | 50 76 76 Overloaded Moves . | . . . Propulsion Burnouts . | . . . Robots Hopped . | . . . Potential Cave-ins . | . . . Cave-ins Triggered . | . . . Exploration Rate (%) 13 | 3 29 7 Regions Visited 2 Branch Regions . Pre-discovered Areas . | . . . Known Exits Taken . | . . . Unknown Exits Taken 2 | 1 1 . Scrap Searched . | . . . Spaces Dug . | . . . Terrain Destroyed . | . . . Melee . | . . . Projectile . | . . . AOE . | . . . Terrain Rammed . | . . . Walls Destroyed . | . . . Machines Disabled . | . . . Actions | -11 -10 -9 --------- Run | Yrd Mat Mat Total 283 | 31 129 123 Wait 5 | . . 5 Move 254 | 29 123 102 Hop . | . . . Pick Up 7 | 1 4 2 Fast Attach 2 | 1 . 1 Attach 1 | . . 1 Detach . | . . . Swap 3 | . 2 1 Drop . | . . . Fire 11 | . . 11 Melee . | . . . Ram . | . . . Kick . | . . . Crush . | . . . Escape Stasis . | . . . Rewire . | . . . Trap . | . . . Miscellaneous . | . . . Route ------- -11/Scrapyard -10/Materials -9/Materials History --------- Turn | Location | Event 6 | -11/Scrapyard | Discovered new exit (range 16) 19 | -11/Scrapyard | Entered Materials 114 | -10/Materials | Discovered new exit (range 4) 117 | -10/Materials | Entered another Materials area 117 | -9/Materials | Evolved 2 slots: Propulsion x1, Utility x1 223 | -9/Materials | Self-destructed Last Messages --------------- SECURING TERMINAL." 00109_ Connecting with Terminal... 00111_ ALERT: Hostiles spotted, dispatching reinforcements to Terminal M004. 00114_ EXIT=FOUND 00117_ Slammed into G-34 Mercenary. PARAMETERS=PROPULSION+1,UTILITY+1 LOCATION=UNKNOWN GOAL=ESCAPE 00125_ Acquired Targeting Computer. 00143_ Acquired Hrd. Light Armor Plating. 00146_ Connecting with Terminal... 00146_ Current location identified: Materials 00156_ Connecting with Terminal... 00167_ K-01 Serf collects debris. 00181_ Acquired Imp. Hover Unit. 00195_ K-01 Serf collects debris. 00220_ Backup Propulsion I destroyed. 00222_ G-34 Mercenary destroyed. 00222_ K-01 Serf collects debris. Map ----- +----------------------------------------------------+ | ?????????????????????????????????????????? | | ?????????????????????????????????????????? | | ?????????????????????????????????????????? | | ?????????????????????????????????????????? | | ?????????????????????????????????????????? | | ?????????????????????????????????????????? | | ?????????????????????????????????????????? | | ?????????????????????????????????????????? | | ?????????????????????????????????????????? | | ?????????????????????????????????????????? | | ?????????????????????????????????????????? | | ?????????????????????????????????????????? | | ??????????????????????? ?????????????????? | | ?????????????????????? ?????????????????? | | ??????????????????????#/########?????????? | | ?????????????????????# #?????????? | | ?????????????????????# ! #?????????? | | ?????????????????????# #?????????? | | ?????????????????????# #?????????? | | ?????????????????????# """ """ #?????????? | | ?????????????????????# """ """ #?????????? | | ?????????????????????# """ """ #?????????? | | ?????????????????????# =* #?########? | | ?????????????????????####+######?# #? | | ????????????????????????#%#??##### #? | | ???????????????????????##@#### # """ #? | | ???????????????????????# " + """ #? | | ???????????????????????# ### # """ #? | | ???????????????????????# #?##### #? | | ???????????????????????# #?????########? | | ???????????????????????# #?????????????? | | ???????????????????????# #?????????????? | | ??????#######+########## k #####?????????? | | ????? #?????????? | | ????? #?????????? | | ????? #?????????? | | ????????????########+######+######???????? | | ?????????????????# # #???????? | | ?????????????????# # T """ #???????? | | ?????????????????# # """""#???????? | | ?????????????????#" # """""#???????? | | ?????????????????#T # """""#???????? | | ?????????????????#" # """ #???????? | | ?????????????????# # #???????? | | ?????????????????####### #???????? | | ???????????????????????###########???????? | | ?????????????????????????????????????????? | | ?????????????????????????????????????????? | | ?????????????????????????????????????????? | | ?????????????????????????????????????????? | +----------------------------------------------------+ Best States ------------- Heat Dissipation 28 Energy Generation 10 Energy Capacity 250 Matter Stores 300 Matter Capacity 300 Sight Range 16 Terrain Scan Density 10 Armor Coverage 160 Evasion (%) 52 Targeting Accuracy 5 Item Schematics ----------------- None Robot Schematics ------------------ None Fabricated ------------ Nothing Repaired ---------- Nothing Studied --------- None Alien Tech Used ----------------- None Achievements -------------- None Challenges ------------ None Game ------ Seed ArmorTripodObfuscator Manual? 0 Play Time 00:03:53 Cumulative 42.4 hours Start 2026.08.31 @ 13:38:10 End 2026.08.31 @ 15:26:54 Sessions 2 Manual Loads 0 Difficulty Rogue Special Mode None Game No. 109 Rogue 109 Adventurer 0 Explorer 0 Win Type - Total 3 Types 3/0/0/0/0/0/0/0/0/0 Lore% 42 Gallery% 36 Achievement% 41 Wizard Run 0 Options --------- Layout 2 ASCII 0 Keyboard 0 Movement Mouse Keybinds 0 Fullscreen 1 Font 16/SmallcapsGlow Map View 50x49 Zoom Use 0% Tactical HUD 1 Map Filters NONE Filters NONE Steam SD RUN: ec1507b9-8e45-44a3-a3ec-40e4dc0125af